Cogmind - Beta 13 @@@ ROGUE MODE // 2024.04.09 @ 22:44:50 Player: Luna Result: Destroyed by D-53 Grenadier with Mini Grenade Launcher Performance ------------- Evolutions (1) 500 Regions Visited (3) 600 Robots Destroyed (25) 125 Value Destroyed (590) 590 Prototype IDs (1) 20 Alien Tech Used (0) 0 Bonus (0) 0 TOTAL SCORE: 1835 Bonus ------- None Cogmind --------- Core Integrity 0/400 Matter 300/300 Energy 83/100 System Corruption 1% Temperature Cool (0) Movement Core (50) Location -9/Mines Parts ------- > --- POWER (2) -------- (None) > --- PROPULSION (2) --- (None) > --- UTILITY (3) ------ Structural Scanner > --- WEAPON (2) ------- (None) > --- INVENTORY (5) ---- Large Battery (200) Visual Processing Unit Sensor Array Core Shielding Peak State ------------ > --- POWER ------------ Ion Engine Improved Ion Engine > --- PROPULSION ------- Wheel Wheel > --- UTILITY ---------- Cooling System Structural Scanner Seismic Detector > --- WEAPON ----------- Light EM Pulse Cannon Light EM Pulse Cannon > --- INVENTORY -------- Large Battery Visual Processing Unit Sensor Array Core Shielding [Rating: 13] Favorites ----------- Power Light Ion Engine Engine Light Ion Engine Propulsion Wheel Treads Light Treads Wheel Wheel Hover Unit Backup Propulsion I Flight Unit Improved Flight Unit Utility Structural Scanner Device Structural Scanner Storage Large Storage Unit Weapon Light EM Pulse Cannon Energy Gun Medium Laser Energy Cannon Light EM Pulse Cannon Ballistic Gun Light Assault Rifle Special Weapon Mining Laser Build | -11 -10 -9 -9 ------- Run | Yrd Mat Mat Min Slots Evolved 2 | . . 2 . Power 1 | . . 1 . Propulsion . | . . . . Utility 1 | . . 1 . Weapon . | . . . . Parts Attached 27 | 5 13 8 1 Power 4 | 1 2 1 . Engine 4 | 1 2 1 . Core . | . . . . Reactor . | . . . . Propulsion 7 | 2 4 1 . Treads 1 | . 1 . . Leg . | . . . . Wheel 5 | 2 3 . . Hover . | . . . . Flight 1 | . . 1 . Utility 6 | . 3 3 . Device 5 | . 3 2 . Storage 1 | . . 1 . Processor . | . . . . Hackware . | . . . . Protection . | . . . . Artifact . | . . . . Weapon 10 | 2 4 3 1 Energy Gun 3 | 1 . 1 1 Energy Cannon 5 | . 3 2 . Ballistic Gun 1 | . 1 . . Ballistic Cannon . | . . . . Launcher . | . . . . Special Weapon 1 | 1 . . . Impact Weapon . | . . . . Slashing Weapon . | . . . . Piercing Weapon . | . . . . Special Melee Weapon . | . . . . Unidentified Prototypes 1 | . . 1 . Parts Lost 14 | . 1 10 3 Power 2 | . . 2 . Propulsion 2 | . . 2 . Utility 3 | . . 2 1 Weapon 7 | . 1 4 2 Highest Loss Streak 5 | . 1 5 3 To Critical Strikes . | . . . . Average Slot Usage (%) 80 | . 96 72 43 Engine 11 | . 14 12 . Wheel 15 | . 28 5 . Hover 3 | . . 8 . Device 25 | . 26 25 22 Energy Gun 4 | . 3 . 21 Energy Cannon 11 | . 9 19 . Ballistic Gun 5 | . 10 . . Special Weapon 1 | . 2 . . Naked Turns . | . . . . Heaviest Build 24 | 6 15 24 7 Greatest Support 20 | 20 20 20 3 Greatest Overweight (x) 5 | . . 5 2 Average Overweight (x) . | . . 1 1 Largest Inventory Capacity 15 | 5 5 15 5 Average Capacity 5 | 5 5 5 5 Most Carried 5 | 5 5 5 4 Average Carried 4 | 3 4 4 4 Final Capacity 5 | 5 5 5 5 Final Carried 5 | 4 5 5 4 Class Distribution -------------------- 100% | Mutant Dominant Class ---------------- Mutant | -10/Materials Mutant | -9/Materials Mutant | -9/Mines Resources | -11 -10 -9 -9 ----------- Run | Yrd Mat Mat Min Matter Collected 438 | 250 129 59 . Remotely . | . . . . Salvage Created 774 | 43 240 491 . Parts 49 | 3 12 34 . Haulers Intercepted . | . . . . Recyclers Shooed . | . . . . Parts Field Recycled . | . . . . Retrieved Matter . | . . . . Parts Self-Destructed . | . . . . Prevented . | . . . . Kills | -11 -10 -9 -9 ------- Run | Yrd Mat Mat Min Combat Hostiles Destroyed 20 | 1 7 12 . Guns 6 | 1 5 . . Cannons 12 | . 2 10 . AOE 1 | . . 1 . Classes Destroyed 8 | 2 3 3 . Worker 1 | . . 1 . Builder 1 | . . 1 . Tunneler 1 | 1 . . . Operator 1 | . 1 . . Watcher 1 | . 1 . . Swarmer 7 | . 3 4 . Grunt 10 | 1 4 5 . Sentry 3 | . . 3 . Best Kill Streak 5 | 2 3 5 . Combat Bots Only 4 | 1 3 4 . Max Kills in Single Turn 2 | 1 1 2 . Gunslinging . | . . . . Exploded 1 | . . 1 . Melee . | . . . . Uniques/NPCs Destroyed . | . . . . Combat | -11 -10 -9 -9 -------- Run | Yrd Mat Mat Min Hostile Shots Fired 141 | 6 34 89 12 Missed 45 | 3 8 34 . Damage Taken 1425 | 34 272 657 462 Core 456 | 12 31 98 315 Absorbed by Shields . | . . . . Regen/Repaired (Parts) 39 | . 24 15 . Core Remaining (%) 88 | 95 82 . . Volleys Fired 81 | 19 33 27 2 Largest 2 | 1 2 2 2 Hottest 150 | 100 150 112 100 Shots Fired 111 | 19 41 48 3 Gun 46 | 12 31 . 3 Cannon 55 | . 7 48 . Launcher . | . . . . Special 10 | 7 3 . . Kinetic 14 | . 14 . . Thermal 42 | 19 20 . 3 Explosive . | . . . . Electromagnetic 55 | . 7 48 . Robot Hit Streak 13 | 2 6 13 3 Robot Miss Streak 2 | 1 2 2 1 Penetration Max . | . . . . Secondary Targets . | . . . . Shots Hit Robots 69 | 7 28 32 2 Core Hits 36 | 3 12 17 4 Critical Kills . | . . . . Critical Parts Destroyed . | . . . . Critical Strikes 8 | 3 5 . . Burn 8 | 3 5 . . Melee Attacks . | . . . . Impact . | . . . . Slashing . | . . . . Piercing . | . . . . Sneak Attacks . | . . . . Combat Hostiles . | . . . . Follow-up Attacks . | . . . . Damage Inflicted 1476 | 113 409 921 33 Guns 365 | 113 228 . 24 Cannons 896 | . 153 743 . Explosions 174 | . . 174 . Melee . | . . . . Ramming 17 | . 4 4 9 Kinetic 64 | . 64 . . Thermal 499 | 113 188 174 24 Explosive . | . . . . Electromagnetic 896 | . 153 743 . Impact . | . . . . Slashing . | . . . . Piercing . | . . . . Highest Corruption 1 | . . . 1 Average Corruption 1 | . . . 1 Corruption Purged . | . . . . Corruption Blocked . | . . . . Overload Shots . | . . . . Overflow Damage 29 | . . 29 . Projectiles 7 | . . 7 . Explosions 22 | . . 22 . Melee . | . . . . Knockbacks . | . . . . Impact . | . . . . Kinetic . | . . . . Secondary . | . . . . Self-Inflicted Damage 70 | . 2 64 4 Shots 2 | . . 2 . Rammed 12 | . 1 6 5 Targets Rammed 12 | . 1 6 5 Kicked . | . . . . Crushed . | . . . . Highest Temperature 276 | 120 276 29 . Average Temperature 74 | 59 97 12 . Received Heat Transfer 345 | 18 120 207 . Effects 1 | . 1 . . Energy Bleed 1 | . 1 . . Siege Activations . | . . . . Robots Corrupted 1 | . . 1 . Combat Hostiles 1 | . . 1 . Parts Fried 1 | . . 1 . Impact Corruptions . | . . . . Robots Melted . | . . . . Combat Hostiles . | . . . . Parts Melted 5 | 2 3 . . Heat Transferred 1880 | 555 901 350 74 Parts Sabotaged . | . . . . Parts Stolen . | . . . . Parts Stripped . | . . . . Power Chain Reactions 2 | . . 2 . Alert | -11 -10 -9 -9 ------- Run | Yrd Mat Mat Min Peak Influence 301 | 25 182 301 56 Initial 76 | . 16 76 56 Average 104 | 10 69 207 53 Maximum Alert Level 1 | . . 1 . Low Security (%) 83 | 100 100 47 100 Level 1 16 | . . 52 . Level 2 . | . . . . Level 3 . | . . . . Level 4 . | . . . . Level 5 . | . . . . High Security . | . . . . Max Security . | . . . . Squads Dispatched 5 | . 3 2 . Investigation 3 | . 2 1 . Extermination . | . . . . Reinforcement 2 | . 1 1 . Assault . | . . . . Garrison . | . . . . Intercept . | . . . . Searches Triggered . | . . . . Construction Impeded . | . . . . Haulers Reinforced . | . . . . Active Scanning Responses . | . . . . Cargo Convoy Interrupts . | . . . . Stealth | -11 -10 -9 -9 --------- Run | Yrd Mat Mat Min Distress Signals . | . . . . Communications Jammed . | . . . . Distress Signals . | . . . . Times Spotted 37 | 1 14 20 2 Peak Tracking Total 5 | 1 4 5 2 Tactical Retreats . | . . . . Traps | -11 -10 -9 -9 ------- Run | Yrd Mat Mat Min Traps Triggered . | . . . . Indirectly . | . . . . Trap Hack Attempts . | . . . . Triggered . | . . . . Disarmed 6 | . 6 . . Reprogrammed . | . . . . Reused . | . . . . Traps Extracted . | . . . . Installed . | . . . . Triggered . | . . . . Machines | -11 -10 -9 -9 ---------- Run | Yrd Mat Mat Min Machines Disabled . | . . . . Max in Single Turn . | . . . . Machines Repaired . | . . . . Machines Dismantled . | . . . . Machines Sabotaged . | . . . . Overloaded Fab Kills . | . . . . Hacking | -11 -10 -9 -9 --------- Run | Yrd Mat Mat Min Machines Accessed 8 | . 6 2 . Terminals 4 | . 4 . . Fabricators . | . . . . Repair Stations 2 | . 1 1 . Recycling Units 1 | . 1 . . Scanalyzers 1 | . . 1 . Garrison Access . | . . . . Total Hacks 33 | . 25 8 . Successful 19 | . 16 3 . Failed 14 | . 9 5 . Catastrophic 1 | . . 1 . Database Lockouts . | . . . . Manual 3 | . 3 . . Terminals 20 | . 20 . . Fabricators . | . . . . Repair Stations 8 | . 2 6 . Recycling Units 3 | . 3 . . Scanalyzers 2 | . . 2 . Garrison Access . | . . . . Terminal Hacks 11 | . 11 . . Record 5 | . 5 . . Emergency Access Points 1 | . 1 . . Alert Level 1 | . 1 . . Disarm Traps 1 | . 1 . . Reprogram Traps 1 | . 1 . . Surveillance Status 1 | . 1 . . Reinforcement Status 1 | . 1 . . Fabricator Hacks . | . . . . Repair Station Hacks 5 | . 2 3 . Scan Component 2 | . 1 1 . Repair 2 | . 1 1 . Refit 1 | . . 1 . Recycling Unit Hacks 3 | . 3 . . Process 1 | . 1 . . Report Inventory 1 | . 1 . . Retrieve Matter 1 | . 1 . . Scanalyzer . | . . . . Garrison Access Hacks . | . . . . Unauthorized Hacks . | . . . . Terminals . | . . . . Fabricators . | . . . . Repair Stations . | . . . . Recycling Units . | . . . . Scanalyzers . | . . . . Garrison Access . | . . . . Data Cores Recovered 1 | . 1 . . Used 1 | . 1 . . Hacking Detections 8 | . 6 2 . Full Trace Events 5 | . 4 1 . Feedback Events . | . . . . Feedback Blocked . | . . . . Robot Schematics Acquired . | . . . . Robots Built . | . . . . Authchips . | . . . . Time . | . . . . Total Robot Build Rating . | . . . . Part Schematics Acquired . | . . . . Parts Built . | . . . . Authchips . | . . . . Time . | . . . . Total Part Build Rating . | . . . . Parts Repaired 2 | . 1 1 . Time 42 | . 16 26 . Parts Recycled . | . . . . Recycled Matter 188 | . 188 . . Retrieved Matter 288 | . 288 . . Retrieved Components . | . . . . Parts Scanalyzed . | . . . . Part Schematics Acquired . | . . . . Parts Damaged . | . . . . Bothacking | -11 -10 -9 -9 ------------ Run | Yrd Mat Mat Min Used RIF Installer . | . . . . Robots Hacked . | . . . . Non-combat . | . . . . Combat . | . . . . Robot Hacks Applied . | . . . . Relay Couplers Released . | . . . . Fabnet Peak Effective % . | . . . . Robots Rewired . | . . . . Allies Hacked . | . . . . Hacks Repelled . | . . . . Allies | -11 -10 -9 -9 -------- Run | Yrd Mat Mat Min Total Allies 2 | . . . 2 Largest Group 2 | . . . 2 Highest-Rated Group 42 | . . . 42 Highest-Rated Ally 31 | . . . 31 Total Orders . | . . . . Ally Attacks 1 | . . . 1 Total Damage 20 | . . . 20 Kills . | . . . . Allies Corrupted . | . . . . Allies Melted . | . . . . Intel | -11 -10 -9 -9 ------- Run | Yrd Mat Mat Min Robot Analysis Total . | . . . . Derelict Logs Recovered . | . . . . Drone Launches . | . . . . Drone Recoveries . | . . . . Exploration | -11 -10 -9 -9 ------------- Run | Yrd Mat Mat Min Turns Passed 1645 | 172 733 517 223 Spaces Moved 1084 | 114 609 218 143 Core 170 | 21 . 6 143 Treads . | . . . . Legs . | . . . . Wheels 795 | 93 609 93 . Hover 119 | . . 119 . Flight . | . . . . Fastest Speed 50 | 50 80 80 50 Average Speed 106 | 74 80 173 146 Slowest Speed 300 | 80 80 300 150 Overloaded Moves . | . . . . Propulsion Burnouts . | . . . . Robots Hopped . | . . . . Cave-ins Triggered . | . . . . Exploration Rate (%) 33 | 8 56 25 46 Regions Visited 3 Branch Regions 1 Pre-discovered Areas . | . . . . Known Exits Taken . | . . . . Unknown Exits Taken 3 | 1 1 1 . Scrap Searched . | . . . . Spaces Dug 6 | 4 2 . . Terrain Destroyed 12 | 7 2 3 . Melee . | . . . . Projectile 9 | 7 2 . . AOE 3 | . . 3 . Terrain Rammed . | . . . . Walls Destroyed . | . . . . Machines Disabled . | . . . . Actions | -11 -10 -9 -9 --------- Run | Yrd Mat Mat Min Total 1438 | 168 812 304 154 Wait 176 | 18 128 27 3 Move 1081 | 113 608 217 143 Hop . | . . . . Pick Up 40 | 11 17 12 . Fast Attach . | . . . . Attach 19 | 5 5 8 1 Detach 1 | . . 1 . Swap 8 | . 8 . . Drop 20 | 2 12 6 . Fire 81 | 19 33 27 2 Melee . | . . . . Ram 12 | . 1 6 5 Kick . | . . . . Crush . | . . . . Escape Stasis . | . . . . Rewire . | . . . . Trap . | . . . . Miscellaneous . | . . . . Route ------- -11/Scrapyard -10/Materials (discovered 2 exits: *Mat / [*Min]) -9/Materials (discovered 4 exits: [*Mat] / [*Min] / [*Sto x2]) -9/Mines History --------- Turn | Location | Event 2 | -11/Scrapyard | Met Revision 17 67 | -11/Scrapyard | Discovered new exit (range 8) 173 | -11/Scrapyard | Entered Materials 218 | -10/Materials | Discovered new exit (range 12) 309 | -10/Materials | Build established: Mutant 823 | -10/Materials | Discovered new exit (range 10) 850 | -10/Materials | Repaired Lgt. EM Pulse Cannon 906 | -10/Materials | Entered another Materials area 906 | -9/Materials | Evolved 2 slots: Power x1, Utility x1 1036 | -9/Materials | Repaired Wheel 1091 | -9/Materials | Lost 5 parts (1p1n1u2w) 1121 | -9/Materials | Discovered new exit (range 5) 1159 | -9/Materials | Discovered new exit (range 15) 1203 | -9/Materials | Discovered new exit (range 11) 1407 | -9/Materials | Discovered new exit (range 7) 1423 | -9/Materials | Entered Mines 1452 | -9/Mines | Lost 4 parts (1p1n1u1w) 1499 | -9/Mines | Met a Derelict bent on vengeance 1616 | -9/Mines | Assembled infested the area 1641 | -9/Mines | Core integrity fell below 50% 1643 | -9/Mines | Core integrity fell below 20% 1646 | -9/Mines | Destroyed by D-53 Grenadier with Mini Grenade Launcher Last Messages --------------- 01530_ K-01 Serf cleans the Pulverizer. 01598_ A pair of derelicts emerge from the shadows: "We're, um, lost. You wouldn't happen to know the way out of here, would you?" 01616_ ALERT: Infestation in the mines, dispatching Demolisher response squad. 01633_ C-30 ARC bursts open, deploying its payload. 01636_ Med. Laser destroyed. 01636_ HM-OBQ(g) destroyed. 01638_ Med. Laser destroyed. 01641_ The unstable cave ceiling collapses. 01641_ Slammed into D-53 Grenadier. 01642_ Destabilizing: System corrupted (+1). 01643_ The unstable cave ceiling collapses. 01643_ Slammed into D-53 Grenadier. 01644_ D-53 Grenadier destroyed. 01644_ Cooling System destroyed. 01645_ The unstable cave ceiling collapses. 01645_ Slammed into D-53 Grenadier. Map ----- +----------------------------------------------------+ | ????????????????????????????????????????????? | | ????????????????????????????????????????????? | | ????????????????????????????????????????????? | | ????????????????????????????????????????????? | | ????????????????????????????????????????????? | | ????????????????????????????????????????????? | | ????????????????????????????????????????????? | | ????????????????????????????????????????????? | | ????????????????????????????????????????????? | | ????????????????????????????????????????????? | | ????????????????????????????????????????????? | | ????????????????????????????????????????????? | | ??????## ????? ?????????????????????????????? | | ??????## ##?? ????????????????????????????? | | ??????## #### ????????????????????????????? | | ??????## #### ???????????????????????????? | | ?????### ### ???????????????????????????? | | ????#### ## ???????????????????????????? | | ????### ??????######?? ##??????????? | | ????## ##???########### ##??????????? | | ????## ###?####### #### ##??????????? | | ????## ######## # ## ##??????????? | | ????### ###### ##??????????? | | ?????### #### ##??????????? | | ????#### ### # ##??????????? | | #??#### # @ ##??????????? | | ###### = %d ## ??????????? | | ##### # ??????????? | | #### % ## ???????????? | | ##### ## ???????????? | | #### ####### # # ####????????????? | | #### ####?#########u ####????????????? | | ??## ####???######## ##??????????????? | | ??## ###??????????## ##??????????????? | | ??### ###?????????## ##??????????????? | | ??### ##?????????## ##??????????????? | | ???### ##?????????## r##??????????????? | | ???#### ###?????????## ??????????????? | | ????#### ####?????????######??????????????? | | ?????#########???????????#####??????????????? | | ??????#######???????????????????????????????? | | | | | | | | | | | | | | | | | | | +----------------------------------------------------+ Best States ------------- Heat Dissipation 50 Energy Generation 17 Energy Capacity 415 Matter Stores 300 Matter Capacity 300 Sight Range 16 Terrain Scan Density 10 Evasion (%) 50 Item Schematics ----------------- None Robot Schematics ------------------ None Fabricated ------------ Nothing Alien Tech Used ----------------- None Achievements -------------- Power Corrupts Challenges ------------ None Game ------ Seed DimensionalChargeRipper Manual? 0 Play Time 00:39:42 Cumulative 3.6 hours Start 2024.04.09 @ 21:57:42 End 2024.04.09 @ 22:44:50 Sessions 1 Manual Loads 0 Difficulty Rogue Special Mode None Game No. 3 Rogue 2 Adventurer 0 Explorer 1 Win Type - Total 0 Types 0/0/0/0/0/0/0/0/0 Lore% 2 Gallery% 10 Achievement% 10 Wizard Run 0 Options --------- Layout 1 ASCII 0 Keyboard 0 Movement Mouse Keybinds 0 Fullscreen 2 Font 48/Smallcaps Map View 50x35 Zoom Use 0% Tactical HUD 1 Map Filters NONE Filters NONE Steam 1 RUN: aa14b5a7-4d39-43c9-9471-d44c8aac6fa6